[Event "Late-Titled-Tuesday-Blitz-February-27-2024"]
[Site "Chess.com"]
[Date "2024.02.27"]
[Round "5"]
[White "Kirill_Klukin"]
[Black "djano"]
[Result "1-0"]
[WhiteElo "2841"]
[BlackElo "2587"]
[TimeControl "180+1"]
[EndTime "14:55:44 PST"]
[Termination "Kirill_Klukin won by resignation"]

1. f4 {[%clk 0:03:00.2]} 1... d5 {[%clk 0:02:53.3]} 2. Nf3 {[%clk 0:03:00.3]}
2... Nf6 {[%clk 0:02:50.2]} 3. g3 {[%clk 0:03:00.4]} 3... c5 {[%clk 0:02:46.8]}
4. Bg2 {[%clk 0:02:58.9]} 4... Nc6 {[%clk 0:02:47.2]} 5. O-O {[%clk 0:02:59]}
5... g6 {[%clk 0:02:46.3]} 6. d3 {[%clk 0:02:58.3]} 6... Bg7 {[%clk 0:02:46.8]}
7. Nc3 {[%clk 0:02:58.1]} 7... O-O {[%clk 0:02:44.8]} 8. e4 {[%clk 0:02:57]}
8... dxe4 {[%clk 0:02:41.2]} 9. dxe4 {[%clk 0:02:56.1]} 9... Qxd1 {[%clk
0:02:33.8]} 10. Rxd1 {[%clk 0:02:54.4]} 10... e5 {[%clk 0:02:29]} 11. fxe5
{[%clk 0:02:27.1]} 11... Ng4 {[%clk 0:02:27.8]} 12. Nd5 {[%clk 0:02:14.6]} 12...
Ngxe5 {[%clk 0:02:23.1]} 13. c3 {[%clk 0:02:14.6]} 13... Bg4 {[%clk 0:02:21.9]}
14. Rf1 {[%clk 0:02:14.4]} 14... Nxf3+ {[%clk 0:02:20.8]} 15. Bxf3 {[%clk
0:02:15.3]} 15... Bxf3 {[%clk 0:02:20.5]} 16. Rxf3 {[%clk 0:02:16.2]} 16... Ne5
{[%clk 0:02:18.8]} 17. Rf1 {[%clk 0:02:15.5]} 17... Rae8 {[%clk 0:01:59.5]} 18.
Bg5 {[%clk 0:02:13.9]} 18... Re6 {[%clk 0:01:36.1]} 19. Rad1 {[%clk 0:02:05.1]}
19... Nc6 {[%clk 0:01:24.2]} 20. Nf6+ {[%clk 0:01:51.3]} 20... Kh8 {[%clk
0:01:08.6]} 21. Nd7 {[%clk 0:01:50.7]} 21... Rfe8 {[%clk 0:01:04.9]} 22. Rxf7
{[%clk 0:01:26.7]} 22... b6 {[%clk 0:01:05.3]} 23. Bf6 {[%clk 0:01:22.4]} 23...
Bxf6 {[%clk 0:00:37.5]} 24. Nxf6 {[%clk 0:01:21.4]} 24... R6e7 {[%clk
0:00:36.9]} 25. Rxh7+ {[%clk 0:01:18.3]} 25... Rxh7 {[%clk 0:00:36.8]} 26. Nxe8
{[%clk 0:01:19.2]} 26... Re7 {[%clk 0:00:31.6]} 27. Nd6 {[%clk 0:01:15.1]} 27...
Ne5 {[%clk 0:00:29.4]} 28. Rd5 {[%clk 0:01:12.9]} 28... Kg7 {[%clk 0:00:25.7]}
29. Kg2 {[%clk 0:01:12.7]} 29... Ng4 {[%clk 0:00:21.9]} 30. Rg5 {[%clk
0:00:45.3]} 30... Ne3+ {[%clk 0:00:08.5]} 31. Kf3 {[%clk 0:00:45.1]} 31... Nd1
{[%clk 0:00:09.2]} 32. Nf5+ {[%clk 0:00:45.6]} 32... Kf6 {[%clk 0:00:09.2]} 33.
Rxg6+ {[%clk 0:00:45.5]} 33... Kxg6 {[%clk 0:00:10.1]} 34. Nxe7+ {[%clk
0:00:46.2]} 34... Kf6 {[%clk 0:00:10.7]} 35. Nd5+ {[%clk 0:00:46.5]} 35... Ke5
{[%clk 0:00:11.2]} 36. b3 {[%clk 0:00:46.8]} 36... b5 {[%clk 0:00:11]} 37. h4
{[%clk 0:00:46.3]} 37... a5 {[%clk 0:00:11.4]} 38. h5 {[%clk 0:00:46.4]} 38...
b4 {[%clk 0:00:12]} 39. cxb4 {[%clk 0:00:43.3]} 39... c4 {[%clk 0:00:12.6]} 40.
bxc4 {[%clk 0:00:42.9]} 1-0

[Event "Late-Titled-Tuesday-Blitz-February-27-2024"]
[Site "Chess.com"]
[Date "2024.02.27"]
[Round "5"]
[White "CrushingKings"]
[Black "Alex_Sahakyan2006"]
[Result "0-1"]
[WhiteElo "2624"]
[BlackElo "2815"]
[TimeControl "180+1"]
[EndTime "14:55:45 PST"]
[Termination "Alex_Sahakyan2006 won by resignation"]

1. Nf3 {[%clk 0:01:06]} 1... d5 {[%clk 0:02:59.4]} 2. g3 {[%clk 0:01:06.4]} 2...
Bg4 {[%clk 0:02:55.7]} 3. Bg2 {[%clk 0:01:06.9]} 3... Nd7 {[%clk 0:02:55.6]} 4.
h3 {[%clk 0:01:07.6]} 4... Bxf3 {[%clk 0:02:51.5]} 5. Bxf3 {[%clk 0:01:08.5]}
5... Ngf6 {[%clk 0:02:51.9]} 6. d4 {[%clk 0:01:09]} 6... e6 {[%clk 0:02:50.9]}
7. O-O {[%clk 0:01:09.9]} 7... c6 {[%clk 0:02:49]} 8. b3 {[%clk 0:01:10.6]} 8...
Bd6 {[%clk 0:02:47.1]} 9. Bb2 {[%clk 0:01:11.5]} 9... O-O {[%clk 0:02:46.4]} 10.
Nd2 {[%clk 0:01:12]} 10... e5 {[%clk 0:02:45.8]} 11. dxe5 {[%clk 0:01:12.2]}
11... Bxe5 {[%clk 0:02:45.3]} 12. c3 {[%clk 0:01:12.4]} 12... Re8 {[%clk
0:02:41.8]} 13. Qc2 {[%clk 0:01:13.1]} 13... Qb6 {[%clk 0:02:41.3]} 14. Rad1
{[%clk 0:01:13.6]} 14... Bxg3 {[%clk 0:02:41.4]} 15. c4 {[%clk 0:01:12.8]} 15...
Be5 {[%clk 0:02:38.6]} 16. Bg2 {[%clk 0:01:10.7]} 16... Bxb2 {[%clk 0:02:35.6]}
17. Qxb2 {[%clk 0:01:11.6]} 17... Rxe2 {[%clk 0:02:35.8]} 18. cxd5 {[%clk
0:01:11.6]} 18... cxd5 {[%clk 0:02:31.4]} 19. Qc3 {[%clk 0:01:11.7]} 19... Rae8
{[%clk 0:02:29.1]} 20. Qd3 {[%clk 0:01:11.9]} 20... Nc5 {[%clk 0:02:25.6]} 21.
Qf5 {[%clk 0:01:10.3]} 21... Qe6 {[%clk 0:02:21]} 22. Qc2 {[%clk 0:01:08.3]}
22... Nce4 {[%clk 0:02:12.7]} 23. Qd3 {[%clk 0:01:08.6]} 23... Nxd2 {[%clk
0:02:05.9]} 24. Rxd2 {[%clk 0:01:09.5]} 24... Rxd2 {[%clk 0:02:06.6]} 25. Qxd2
{[%clk 0:01:10.4]} 25... Rd8 {[%clk 0:02:03]} 26. Rd1 {[%clk 0:01:10.5]} 26...
d4 {[%clk 0:01:59.1]} 27. Qb4 {[%clk 0:01:10.1]} 27... d3 {[%clk 0:01:54.8]} 28.
Qxb7 {[%clk 0:01:09]} 28... d2 {[%clk 0:01:50.4]} 29. Qf3 {[%clk 0:01:08.8]}
29... Qe1+ {[%clk 0:01:38.7]} 30. Bf1 {[%clk 0:01:08.8]} 30... h5 {[%clk
0:01:35]} 31. Kg2 {[%clk 0:01:07.9]} 31... Ne4 {[%clk 0:01:31.4]} 32. Be2 {[%clk
0:01:01.5]} 32... Nc3 {[%clk 0:01:20.3]} 33. Qxc3 {[%clk 0:01:01.4]} 33... Qxe2
{[%clk 0:01:20.6]} 34. Qf3 {[%clk 0:01:02.3]} 34... Qe5 {[%clk 0:01:15.8]} 35.
Qg3 {[%clk 0:00:40.8]} 35... Qe1 {[%clk 0:01:07.2]} 36. Qf3 {[%clk 0:00:40.6]}
36... Rd6 {[%clk 0:01:02]} 37. h4 {[%clk 0:00:10.3]} 37... Rg6+ {[%clk
0:00:57.8]} 38. Kh3 {[%clk 0:00:10.9]} 38... Rg1 {[%clk 0:00:42.7]} 0-1

[Event "Late-Titled-Tuesday-Blitz-February-27-2024"]
[Site "Chess.com"]
[Date "2024.02.27"]
[Round "5"]
[White "dosto07"]
[Black "QuintilianoR"]
[Result "0-1"]
[WhiteElo "2505"]
[BlackElo "2748"]
[TimeControl "180+1"]
[EndTime "14:55:46 PST"]
[Termination "QuintilianoR won by resignation"]

1. e4 {[%clk 0:03:00.9]} 1... c5 {[%clk 0:02:59]} 2. Nf3 {[%clk 0:02:59.4]} 2...
d6 {[%clk 0:02:59.2]} 3. Bb5+ {[%clk 0:02:59.1]} 3... Bd7 {[%clk 0:02:58.9]} 4.
Bxd7+ {[%clk 0:02:58.9]} 4... Nxd7 {[%clk 0:02:59.8]} 5. O-O {[%clk 0:02:58.5]}
5... Ngf6 {[%clk 0:03:00.3]} 6. Qe2 {[%clk 0:02:54.2]} 6... e6 {[%clk
0:02:59.9]} 7. c3 {[%clk 0:02:47.3]} 7... Be7 {[%clk 0:02:59.8]} 8. d4 {[%clk
0:02:47.8]} 8... O-O {[%clk 0:03:00.3]} 9. Rd1 {[%clk 0:02:45.8]} 9... Rc8
{[%clk 0:02:46.9]} 10. Bg5 {[%clk 0:02:44.2]} 10... Ne8 {[%clk 0:02:43.4]} 11.
Bf4 {[%clk 0:02:38.3]} 11... a6 {[%clk 0:02:35.6]} 12. Nbd2 {[%clk 0:02:33]}
12... cxd4 {[%clk 0:02:35]} 13. cxd4 {[%clk 0:02:32.7]} 13... Qb6 {[%clk
0:02:34.9]} 14. Nc4 {[%clk 0:02:16]} 14... Qb5 {[%clk 0:02:34.3]} 15. Rdc1
{[%clk 0:02:13.5]} 15... Nb6 {[%clk 0:02:31.2]} 16. b3 {[%clk 0:02:02.9]} 16...
Nxc4 {[%clk 0:02:27.5]} 17. bxc4 {[%clk 0:02:01.7]} 17... Qd7 {[%clk 0:02:27.9]}
18. Rab1 {[%clk 0:01:56.5]} 18... Nf6 {[%clk 0:02:20.1]} 19. e5 {[%clk
0:01:27.4]} 19... dxe5 {[%clk 0:02:19.8]} 20. Bxe5 {[%clk 0:01:27.6]} 20... Rfd8
{[%clk 0:02:17.3]} 21. Rc3 {[%clk 0:01:16.4]} 21... b5 {[%clk 0:02:15]} 22. c5
{[%clk 0:00:50.6]} 22... Nd5 {[%clk 0:02:14.6]} 23. Ra3 {[%clk 0:00:49.7]} 23...
f6 {[%clk 0:02:11.8]} 24. Bg3 {[%clk 0:00:48.5]} 24... Rc6 {[%clk 0:02:08.9]}
25. Re1 {[%clk 0:00:44.5]} 25... Bf8 {[%clk 0:02:05.2]} 26. Rb3 {[%clk 0:00:41]}
26... b4 {[%clk 0:02:03.3]} 27. h4 {[%clk 0:00:38.5]} 27... a5 {[%clk
0:02:00.9]} 28. Nh2 {[%clk 0:00:35.8]} 28... Nc3 {[%clk 0:01:54.8]} 29. Rxc3
{[%clk 0:00:18.1]} 29... bxc3 {[%clk 0:01:54.6]} 30. Nf3 {[%clk 0:00:19]} 30...
Qd5 {[%clk 0:01:53.3]} 31. Qc2 {[%clk 0:00:18.3]} 31... e5 {[%clk 0:01:49.3]}
32. dxe5 {[%clk 0:00:12.9]} 32... Qxc5 {[%clk 0:01:47.7]} 33. e6 {[%clk
0:00:10.9]} 33... Qd5 {[%clk 0:01:43.3]} 34. e7 {[%clk 0:00:08.7]} 34... Bxe7
{[%clk 0:01:43.5]} 35. Rxe7 {[%clk 0:00:08.8]} 35... Qd1+ {[%clk 0:01:44.1]} 36.
Qxd1 {[%clk 0:00:06.6]} 36... Rxd1+ {[%clk 0:01:43.8]} 37. Kh2 {[%clk
0:00:07.5]} 37... c2 {[%clk 0:01:43.6]} 38. Bf4 {[%clk 0:00:08.1]} 38... c1=Q
{[%clk 0:01:43.6]} 39. Bxc1 {[%clk 0:00:08.3]} 39... Rdxc1 {[%clk 0:01:43.7]}
40. h5 {[%clk 0:00:09]} 40... Rc7 {[%clk 0:01:42.1]} 41. Re4 {[%clk 0:00:07.9]}
41... Kf7 {[%clk 0:01:40.8]} 42. Ra4 {[%clk 0:00:06]} 42... R1c5 {[%clk
0:01:40.6]} 43. h6 {[%clk 0:00:05]} 43... g6 {[%clk 0:01:38.2]} 44. Kg3 {[%clk
0:00:05.9]} 44... Rb7 {[%clk 0:01:37.7]} 45. Rd4 {[%clk 0:00:05.8]} 45... g5
{[%clk 0:01:36.1]} 46. Rd6 {[%clk 0:00:05.6]} 46... Kg6 {[%clk 0:01:35.9]} 47.
Nd4 {[%clk 0:00:05.5]} 47... Rc3+ {[%clk 0:01:29]} 48. f3 {[%clk 0:00:05.8]}
48... Rd3 {[%clk 0:01:29.9]} 49. Nf5 {[%clk 0:00:05]} 49... Rxd6 {[%clk
0:01:29.6]} 50. Nxd6 {[%clk 0:00:05.6]} 50... Rb2 {[%clk 0:01:29.2]} 51. a4
{[%clk 0:00:05.8]} 51... Rb4 {[%clk 0:01:29]} 52. Ne4 {[%clk 0:00:04.8]} 52...
Rxa4 {[%clk 0:01:28]} 53. Nc5 {[%clk 0:00:05.6]} 53... Rc4 {[%clk 0:01:27.3]}
54. Ne6 {[%clk 0:00:05.5]} 54... a4 {[%clk 0:01:26]} 0-1

[Event "Late-Titled-Tuesday-Blitz-February-27-2024"]
[Site "Chess.com"]
[Date "2024.02.27"]
[Round "5"]
[White "manitodeplomo"]
[Black "Vasily85"]
[Result "1-0"]
[WhiteElo "2662"]
[BlackElo "2489"]
[TimeControl "180+1"]
[EndTime "14:55:57 PST"]
[Termination "manitodeplomo won on time"]

1. d4 {[%clk 0:03:00.9]} 1... Nf6 {[%clk 0:03:00]} 2. c4 {[%clk 0:03:01]} 2...
e6 {[%clk 0:03:00]} 3. Nf3 {[%clk 0:03:01.2]} 3... Bb4+ {[%clk 0:02:57.7]} 4.
Bd2 {[%clk 0:03:00.7]} 4... a5 {[%clk 0:02:57.5]} 5. Bxb4 {[%clk 0:02:58.4]}
5... axb4 {[%clk 0:02:58.4]} 6. Qd3 {[%clk 0:02:52.6]} 6... d6 {[%clk
0:02:27.9]} 7. Nbd2 {[%clk 0:02:51.4]} 7... O-O {[%clk 0:02:22.5]} 8. e4 {[%clk
0:02:49.3]} 8... Nbd7 {[%clk 0:02:16.5]} 9. Be2 {[%clk 0:02:47.5]} 9... e5
{[%clk 0:02:14.9]} 10. O-O {[%clk 0:02:46]} 10... exd4 {[%clk 0:02:05.8]} 11.
Nxd4 {[%clk 0:02:45]} 11... Nc5 {[%clk 0:02:04.8]} 12. Qc2 {[%clk 0:02:41.9]}
12... Re8 {[%clk 0:01:57.5]} 13. f3 {[%clk 0:02:41.4]} 13... c6 {[%clk
0:01:53.9]} 14. Rfd1 {[%clk 0:02:31.4]} 14... Qb6 {[%clk 0:01:53.1]} 15. Kh1
{[%clk 0:02:16.2]} 15... d5 {[%clk 0:01:19.2]} 16. exd5 {[%clk 0:02:09.8]} 16...
cxd5 {[%clk 0:01:19.9]} 17. cxd5 {[%clk 0:02:09.2]} 17... Nxd5 {[%clk
0:01:08.1]} 18. Nc4 {[%clk 0:02:08.4]} 18... Qf6 {[%clk 0:00:54]} 19. Bf1 {[%clk
0:01:57.6]} 19... b6 {[%clk 0:00:27.2]} 20. Nb5 {[%clk 0:01:42.2]} 20... Bf5
{[%clk 0:00:24.9]} 21. Qf2 {[%clk 0:01:42.2]} 21... Nf4 {[%clk 0:00:23.9]} 22.
Rd6 {[%clk 0:01:35.4]} 22... Re6 {[%clk 0:00:23]} 23. Rxe6 {[%clk 0:01:32]}
23... Bxe6 {[%clk 0:00:23.9]} 24. Nxb6 {[%clk 0:01:31.4]} 24... Ncd3 {[%clk
0:00:20.6]} 25. Qe3 {[%clk 0:01:20.7]} 25... Rd8 {[%clk 0:00:18.2]} 26. g3
{[%clk 0:01:03.7]} 26... Nh3 {[%clk 0:00:13.8]} 27. Nc7 {[%clk 0:00:43.4]} 27...
Nhf2+ {[%clk 0:00:09.7]} 28. Kg1 {[%clk 0:00:42.1]} 28... Nh3+ {[%clk
0:00:07.9]} 29. Bxh3 {[%clk 0:00:41.7]} 29... Bxh3 {[%clk 0:00:08.8]} 30. Rd1
{[%clk 0:00:37.8]} 30... h5 {[%clk 0:00:07.8]} 31. Ncd5 {[%clk 0:00:34.9]} 31...
Qxb2 {[%clk 0:00:03.1]} 32. Qd2 {[%clk 0:00:33.1]} 32... Qxd2 {[%clk 0:00:02.4]}
33. Rxd2 {[%clk 0:00:34]} 33... Bf5 {[%clk 0:00:02]} 34. Ne7+ {[%clk 0:00:33.9]}
1-0

[Event "Late-Titled-Tuesday-Blitz-February-27-2024"]
[Site "Chess.com"]
[Date "2024.02.27"]
[Round "5"]
[White "ArtemDyachuk"]
[Black "Pingah9"]
[Result "1-0"]
[WhiteElo "2704"]
[BlackElo "2569"]
[TimeControl "180+1"]
[EndTime "14:55:59 PST"]
[Termination "ArtemDyachuk won by resignation"]

1. d4 {[%clk 0:03:00.9]} 1... g6 {[%clk 0:02:58.4]} 2. e4 {[%clk 0:02:59.9]}
2... Bg7 {[%clk 0:02:58.6]} 3. c3 {[%clk 0:03:00.5]} 3... d6 {[%clk 0:02:58.6]}
4. Bd3 {[%clk 0:03:01]} 4... Nd7 {[%clk 0:02:58.6]} 5. Nf3 {[%clk 0:03:01.2]}
5... e6 {[%clk 0:02:58]} 6. O-O {[%clk 0:03:00.9]} 6... a6 {[%clk 0:02:57.9]} 7.
a4 {[%clk 0:02:58.6]} 7... b6 {[%clk 0:02:58.2]} 8. Qe2 {[%clk 0:02:57.5]} 8...
Ne7 {[%clk 0:02:57.7]} 9. Re1 {[%clk 0:02:57.5]} 9... O-O {[%clk 0:02:56.4]} 10.
Nbd2 {[%clk 0:02:58]} 10... Bb7 {[%clk 0:02:56]} 11. Nf1 {[%clk 0:02:58.3]}
11... h6 {[%clk 0:02:54.8]} 12. Bf4 {[%clk 0:02:56.2]} 12... Qe8 {[%clk
0:02:46.7]} 13. Ng3 {[%clk 0:02:52.2]} 13... e5 {[%clk 0:02:39.4]} 14. Be3
{[%clk 0:02:50.1]} 14... c5 {[%clk 0:02:30.4]} 15. Rad1 {[%clk 0:02:44.2]} 15...
Nc6 {[%clk 0:02:24.1]} 16. Bb1 {[%clk 0:02:35.6]} 16... Qe7 {[%clk 0:02:09.3]}
17. h4 {[%clk 0:02:28.7]} 17... cxd4 {[%clk 0:01:56.1]} 18. cxd4 {[%clk
0:02:28.6]} 18... exd4 {[%clk 0:01:56]} 19. Nxd4 {[%clk 0:02:29.2]} 19... Nxd4
{[%clk 0:01:43.9]} 20. Bxd4 {[%clk 0:02:30.1]} 20... Qxh4 {[%clk 0:01:38.1]} 21.
Bxg7 {[%clk 0:02:26.5]} 21... Kxg7 {[%clk 0:01:39]} 22. Rxd6 {[%clk 0:02:23.8]}
22... Rfd8 {[%clk 0:01:37.9]} 23. e5 {[%clk 0:01:51.4]} 23... Nc5 {[%clk
0:01:23.3]} 24. Rf6 {[%clk 0:01:41.7]} 24... Re8 {[%clk 0:01:08.6]} 25. Rxb6
{[%clk 0:01:15.3]} 25... Qxa4 {[%clk 0:01:07.8]} 26. b4 {[%clk 0:01:11.6]} 26...
Nd7 {[%clk 0:00:54.2]} 27. Rxb7 {[%clk 0:01:11.6]} 27... Rxe5 {[%clk 0:00:53.7]}
28. Qd2 {[%clk 0:01:11.8]} 28... Rxe1+ {[%clk 0:00:41.5]} 29. Qxe1 {[%clk
0:01:12.7]} 29... Nf6 {[%clk 0:00:40.5]} 30. Rb6 {[%clk 0:00:42.8]} 30... Qb3
{[%clk 0:00:34.6]} 31. Qe5 {[%clk 0:00:36.1]} 31... Qxb1+ {[%clk 0:00:29.2]} 32.
Kh2 {[%clk 0:00:35.5]} 32... Kg8 {[%clk 0:00:24.8]} 33. Qxf6 {[%clk 0:00:33.7]}
33... Qd3 {[%clk 0:00:23]} 34. Rd6 {[%clk 0:00:29.6]} 34... Qc4 {[%clk 0:00:23]}
35. Rd8+ {[%clk 0:00:26.2]} 35... Rxd8 {[%clk 0:00:23.3]} 36. Qxd8+ {[%clk
0:00:27.1]} 36... Kh7 {[%clk 0:00:23.9]} 37. Qe7 {[%clk 0:00:25.3]} 37... Kg7
{[%clk 0:00:23]} 38. Ne4 {[%clk 0:00:25]} 38... Qd4 {[%clk 0:00:22.4]} 39. f4
{[%clk 0:00:22.3]} 39... Kg8 {[%clk 0:00:22.6]} 40. Qe8+ {[%clk 0:00:20]} 40...
Kg7 {[%clk 0:00:23.1]} 41. Qe5+ {[%clk 0:00:20]} 1-0

[Event "Late-Titled-Tuesday-Blitz-February-27-2024"]
[Site "Chess.com"]
[Date "2024.02.27"]
[Round "5"]
[White "morte-negra"]
[Black "Chessdude1987"]
[Result "1-0"]
[WhiteElo "2049"]
[BlackElo "2357"]
[TimeControl "180+1"]
[EndTime "14:56:00 PST"]
[Termination "morte-negra won by resignation"]

1. e4 {[%clk 0:03:00.9]} 1... e6 {[%clk 0:03:00.1]} 2. d4 {[%clk 0:02:54.1]}
2... d5 {[%clk 0:03:00.5]} 3. e5 {[%clk 0:02:53.6]} 3... c5 {[%clk 0:03:00.4]}
4. c3 {[%clk 0:02:39]} 4... Nc6 {[%clk 0:03:00.2]} 5. Nf3 {[%clk 0:02:39]} 5...
Qb6 {[%clk 0:03:00.3]} 6. Bd3 {[%clk 0:02:38.7]} 6... Nh6 {[%clk 0:02:55.4]} 7.
O-O {[%clk 0:02:37.1]} 7... cxd4 {[%clk 0:02:55.5]} 8. Re1 {[%clk 0:02:36]} 8...
Nf5 {[%clk 0:02:51.3]} 9. Bxf5 {[%clk 0:02:33.1]} 9... exf5 {[%clk 0:02:51.1]}
10. Nxd4 {[%clk 0:02:29.5]} 10... Be6 {[%clk 0:02:42.4]} 11. Qa4 {[%clk
0:02:11.7]} 11... Be7 {[%clk 0:02:13.1]} 12. Na3 {[%clk 0:02:02.6]} 12... O-O
{[%clk 0:02:12.3]} 13. Nab5 {[%clk 0:02:03.1]} 13... a6 {[%clk 0:02:03.3]} 14.
Nd6 {[%clk 0:02:01.7]} 14... Bxd6 {[%clk 0:01:56.9]} 15. exd6 {[%clk 0:02:02.1]}
15... Nxd4 {[%clk 0:01:54.1]} 16. cxd4 {[%clk 0:01:51.5]} 16... Qxd6 {[%clk
0:01:54.2]} 17. b3 {[%clk 0:01:51.6]} 17... f4 {[%clk 0:01:52.9]} 18. Ba3 {[%clk
0:01:50.6]} 18... Qd8 {[%clk 0:01:44.2]} 19. Bxf8 {[%clk 0:01:48.9]} 19... Qxf8
{[%clk 0:01:44.3]} 20. Qa5 {[%clk 0:01:40.1]} 20... f3 {[%clk 0:01:40.9]} 21. g3
{[%clk 0:01:35.8]} 21... Qe7 {[%clk 0:01:37.4]} 22. Qxd5 {[%clk 0:01:29.2]}
22... Qf6 {[%clk 0:01:25.9]} 23. Qxb7 {[%clk 0:01:13]} 23... Rf8 {[%clk
0:01:25.4]} 24. Re5 {[%clk 0:01:05.6]} 24... Qd8 {[%clk 0:01:04.1]} 25. d5
{[%clk 0:01:00.1]} 25... Bc8 {[%clk 0:00:52.4]} 26. Qe7 {[%clk 0:00:58.1]} 26...
Qb6 {[%clk 0:00:46.4]} 27. Rae1 {[%clk 0:00:49.4]} 27... g6 {[%clk 0:00:46.2]}
28. d6 {[%clk 0:00:46.8]} 28... Be6 {[%clk 0:00:26]} 29. d7 {[%clk 0:00:42.8]}
29... Qd8 {[%clk 0:00:25.3]} 30. Rxe6 {[%clk 0:00:30.5]} 30... fxe6 {[%clk
0:00:24.5]} 31. Qxe6+ {[%clk 0:00:31.1]} 31... Kh8 {[%clk 0:00:24.1]} 32. Qe5+
{[%clk 0:00:28.9]} 32... Kg8 {[%clk 0:00:24]} 33. Qd5+ {[%clk 0:00:28.7]} 33...
Kh8 {[%clk 0:00:23.9]} 34. Qd6 {[%clk 0:00:18.7]} 34... Kg8 {[%clk 0:00:22.5]}
35. Re7 {[%clk 0:00:18.1]} 35... Kh8 {[%clk 0:00:16.4]} 36. Qd4+ {[%clk
0:00:17.2]} 1-0

[Event "Late-Titled-Tuesday-Blitz-February-27-2024"]
[Site "Chess.com"]
[Date "2024.02.27"]
[Round "5"]
[White "emeli_chess"]
[Black "ACollins05"]
[Result "0-1"]
[WhiteElo "2434"]
[BlackElo "2582"]
[TimeControl "180+1"]
[EndTime "14:56:06 PST"]
[Termination "ACollins05 won on time"]

1. d4 {[%clk 0:03:00.9]} 1... d5 {[%clk 0:02:59.4]} 2. c4 {[%clk 0:03:00.8]}
2... e6 {[%clk 0:02:59.5]} 3. Nc3 {[%clk 0:03:00.3]} 3... Be7 {[%clk 0:02:59.1]}
4. cxd5 {[%clk 0:02:58.7]} 4... exd5 {[%clk 0:03:00]} 5. Nf3 {[%clk 0:02:58.9]}
5... Nf6 {[%clk 0:02:56.9]} 6. Bg5 {[%clk 0:02:58.1]} 6... c6 {[%clk 0:02:56]}
7. Qc2 {[%clk 0:02:57.3]} 7... g6 {[%clk 0:02:56.1]} 8. e3 {[%clk 0:02:54.9]}
8... Bf5 {[%clk 0:02:55.6]} 9. Bd3 {[%clk 0:02:50.9]} 9... Bxd3 {[%clk
0:02:55.3]} 10. Qxd3 {[%clk 0:02:51.2]} 10... Nbd7 {[%clk 0:02:56]} 11. O-O
{[%clk 0:02:50.6]} 11... O-O {[%clk 0:02:55.5]} 12. Rab1 {[%clk 0:02:45.1]}
12... a5 {[%clk 0:02:54.5]} 13. Qc2 {[%clk 0:02:40.3]} 13... Re8 {[%clk
0:02:53.1]} 14. a3 {[%clk 0:02:35.7]} 14... Rc8 {[%clk 0:02:41]} 15. b4 {[%clk
0:02:33.9]} 15... axb4 {[%clk 0:02:41.9]} 16. axb4 {[%clk 0:02:34]} 16... b5
{[%clk 0:02:42.6]} 17. Rfc1 {[%clk 0:02:29.1]} 17... Nb6 {[%clk 0:02:41.6]} 18.
Ne5 {[%clk 0:02:22.7]} 18... Nfd7 {[%clk 0:02:37.1]} 19. Bxe7 {[%clk 0:02:18.6]}
19... Qxe7 {[%clk 0:02:35.6]} 20. Nxd7 {[%clk 0:02:03.9]} 20... Qxd7 {[%clk
0:02:34.5]} 21. Nd1 {[%clk 0:01:57.2]} 21... Nc4 {[%clk 0:02:34.3]} 22. Ra1
{[%clk 0:01:50.6]} 22... Ra8 {[%clk 0:02:33.6]} 23. Nb2 {[%clk 0:01:48.2]} 23...
Qe7 {[%clk 0:02:23.6]} 24. Nd3 {[%clk 0:01:41.7]} 24... Ra7 {[%clk 0:02:19.7]}
25. h3 {[%clk 0:01:30.7]} 25... Rea8 {[%clk 0:02:18.8]} 26. Rxa7 {[%clk
0:01:29.2]} 26... Qxa7 {[%clk 0:02:19.7]} 27. Nc5 {[%clk 0:01:25.3]} 27... Qa3
{[%clk 0:02:19.1]} 28. Rb1 {[%clk 0:01:08.1]} 28... Qa2 {[%clk 0:02:07.6]} 29.
Qxa2 {[%clk 0:01:07.2]} 29... Rxa2 {[%clk 0:02:08.5]} 30. g4 {[%clk 0:01:03]}
30... g5 {[%clk 0:02:03.8]} 31. Nd3 {[%clk 0:00:53.1]} 31... f6 {[%clk
0:01:59.1]} 32. Re1 {[%clk 0:00:50.1]} 32... Kf7 {[%clk 0:01:52.7]} 33. Kg2
{[%clk 0:00:50]} 33... Rd2 {[%clk 0:01:49.2]} 34. Nc5 {[%clk 0:00:46]} 34... Rb2
{[%clk 0:01:49.1]} 35. Nd3 {[%clk 0:00:43.2]} 35... Rb3 {[%clk 0:01:48.1]} 36.
Rd1 {[%clk 0:00:42.8]} 36... Kg6 {[%clk 0:01:42.6]} 37. Kg3 {[%clk 0:00:40]}
37... h5 {[%clk 0:01:40.7]} 38. gxh5+ {[%clk 0:00:38.1]} 38... Kxh5 {[%clk
0:01:41.6]} 39. Kf3 {[%clk 0:00:26.4]} 39... Kh4 {[%clk 0:01:40.5]} 40. Kg2
{[%clk 0:00:19.7]} 40... Kh5 {[%clk 0:01:36.3]} 41. Kg3 {[%clk 0:00:19.5]} 41...
Kg6 {[%clk 0:01:36.3]} 42. h4 {[%clk 0:00:18.9]} 42... gxh4+ {[%clk 0:01:30.8]}
43. Kxh4 {[%clk 0:00:19.1]} 43... Kf5 {[%clk 0:01:31.2]} 44. Kg3 {[%clk
0:00:19.3]} 44... Kg6 {[%clk 0:01:22]} 45. Kf4 {[%clk 0:00:18.2]} 45... Kf7
{[%clk 0:01:17.9]} 46. f3 {[%clk 0:00:13.3]} 46... Ke7 {[%clk 0:01:13.8]} 47. e4
{[%clk 0:00:13.3]} 47... dxe4 {[%clk 0:01:11.9]} 48. fxe4 {[%clk 0:00:14.2]}
48... Nb2 {[%clk 0:01:10.8]} 49. Nc5 {[%clk 0:00:07.8]} 49... Rxb4 {[%clk
0:01:02.4]} 50. d5 {[%clk 0:00:02.6]} 50... Nxd1 {[%clk 0:00:59.6]} 0-1